lending/lending_fUSD_20240206
["ID","MTS","AMOUNT","RATE_DAILY","PERIOD"]
[313358227,1707227462105,-2964.75430104,0.0005,4]
[313358228,1707227462114,-2500.0,0.0005,120]
[313358229,1707227462123,-270.0615337,0.0005,4]
[313358230,1707227462133,-622.27782309,0.0005,30]
[313358231,1707227462142,-498.86527,0.0005,2]
[313358232,1707227462151,-5011.9431,0.0005,2]
[313358233,1707227462161,-183.46428275,0.0005,4]
[313358234,1707227462170,-155.0,0.0005,4]
[313358235,1707227462179,-155.0,0.0005,4]
[313358236,1707227462188,-2063.90393705,0.0005,60]
[313358237,1707227462198,-203.10253808,0.0005,30]
[313358238,1707227462207,-157.09319865,0.0005,30]
[313358239,1707227462216,-360.7560881,0.0005,51]
[313358240,1707227462226,-932.09649404,0.0005,2]
[313358241,1707227462235,-150.12417379,0.0005,15]
[313358242,1707227462248,-157.18432642,0.0005,30]
[313358243,1707227462257,-200000.0,0.0005,30]
[313358244,1707227462269,-155.90817012,0.0005,120]
[313358245,1707227462279,-2023.18,0.0005,60]
[313358246,1707227462289,-2260.0,0.0005,61]
[313358247,1707227462299,-209.28269856,0.0005,90]
[313358248,1707227462309,-50000.0,0.0005,12]
[313358249,1707227462319,-155.0,0.0005,2]
[313358250,1707227462329,-503.5,0.0005,30]
[313358251,1707227462339,-13170.27,0.0005,30]
[313358252,1707227462349,-7374.75850052,0.0005,2]
[313358253,1707227462359,-200.0,0.0005,30]
[313358254,1707227462369,-20896.14794589,0.0005,20]
[313358255,1707227462378,-150.0,0.0005,120]
[313358256,1707227462387,-1010.0,0.0005,7]
[313358257,1707227462397,-8389.71474372,0.0005,4]
[313358258,1707227462406,-11386.24717684,0.0005,120]
[313358259,1707227462415,-243340.79050533,0.0005,120]
[313358260,1707227462903,-846.44959798,0.0003,2]
[313358261,1707227462917,-2153.55040202,0.0003,2]
[313358262,1707227462928,-3000.0,0.0003,2]
[313358263,1707227462939,-3000.0,0.0003,2]
[313358264,1707227462951,-3000.0,0.0003,2]
[313358265,1707227462961,-4547.96411038,0.0005,120]
[313358266,1707227462982,-297.14981284,0.00022998,2]
[313358267,1707227462994,-378.11543785,0.00022998,2]
[313358268,1707227463363,-426.92966102,0.000229,2]
[313358269,1707227463372,-128.71131654,0.00022998,2]
[313358270,1707227463381,-377.69078309,0.00022999,2]
[313358271,1707227463391,-410.69,0.00024932,2]
[313358272,1707227463400,-3000.0,0.0003,2]
[313358273,1707227463409,-3000.0,0.0003,2]
[313358274,1707227463418,-184.78377596,0.0003,2]
[313358275,1707227463427,-184.78377596,0.0003,2]
[313358276,1707227463435,-184.78377596,0.0003,2]
[313358277,1707227463445,-184.78377596,0.0003,2]
[313358278,1707227463453,-184.78377596,0.0003,2]
[313358279,1707227463463,-184.78377596,0.0003,2]
[313358280,1707227463472,-184.78377596,0.0003,2]
[313358281,1707227463481,-184.78377596,0.0003,2]
[313358282,1707227463490,-184.78377596,0.0003,2]
[313358283,1707227463499,-184.78377596,0.0003,2]
[313358284,1707227463508,-184.78377596,0.0003,2]
[313358285,1707227463518,-184.78377596,0.0003,2]
[313358286,1707227463527,-184.78377596,0.0003,2]
[313358287,1707227463536,-184.78377596,0.0003,2]
[313358288,1707227463545,-184.78377596,0.0003,2]
[313358289,1707227463555,-7144.75438909,0.0003888,2]
[313358290,1707227463567,-854.73213679,0.0003888,2]
[313358291,1707227513792,1973.4,0.00015,10]
[313358292,1707227513815,1026.6,0.00015,10]
[313358293,1707227999031,860.02123098,0.00015,2]
[313358294,1707228000027,937.66535403,0.00022308,2]
[313358295,1707228000513,1955.59887024,0.00020698,5]
[313358296,1707228002308,869.0078211,0.00015,2]
[313358297,1707228004763,1123.92206291,0.00015,2]
[313358298,1707228009093,948.45035289,0.00015,2]
[313358299,1707228013661,856.00804064,0.000195,2]
[313358300,1707228015015,860.02123098,0.00015,2]
[313358301,1707228022198,869.0078211,0.00015,2]
[313358302,1707228031660,856.00804064,0.000195,2]
[313358303,1707228037037,882.94044157,0.00015,2]
[313358304,1707228037408,1026.93618598,0.0002,2]
[313358305,1707228042356,869.0078211,0.00015,2]
[313358306,1707228049658,855.29819861,0.000195,2]
[313358307,1707228055403,1029.49071524,0.0002,2]
[313358308,1707228060211,871.38416132,0.00015,2]
[313358309,1707228178174,8796.0,0.00027,30]
[313358312,1707228631868,-513.88885423,0.0002269,2]
[313358313,1707228631879,-304.37172255,0.00022691,2]
[313358314,1707228631892,-485.80288671,0.00022691,2]
[313358315,1707228632015,-76.08202189,0.00022691,2]
[313358316,1707228632031,-162.57336887,0.00022791,2]
[313358317,1707228632043,-714.37,0.0002289,2]
[313358318,1707228632054,-714.19,0.0002289,2]
[313358319,1707228632066,-711.4,0.00022891,2]
[313358320,1707228632076,-150.0,0.00022891,2]
[313358321,1707228632086,-736.46,0.00022891,2]
[313358322,1707228632097,-720.14,0.00022891,2]
[313358323,1707228632239,-722.94,0.00022892,2]
[313358324,1707228632250,-3409.89,0.00022892,2]
[313358325,1707228632260,-499.99,0.00022892,2]
[313358326,1707228632269,-734.97,0.00022892,2]
[313358327,1707228632285,-714.24,0.00022892,2]
[313358328,1707228632295,-713.64,0.00022892,2]
[313358329,1707228632304,-725.88,0.00022892,2]
[313358330,1707228632314,-999.99,0.00022892,2]
[313358331,1707228632324,-356.5382,0.00022898,2]
[313358332,1707228632333,-2942.2433,0.00022898,2]
[313358333,1707228632343,-15530.1621,0.000229,2]
[313358334,1707228632352,-1000.0,0.000229,2]
[313358335,1707228632362,-101574.33187341,0.000229,2]
[313358336,1707228632378,-3882.14213159,0.000229,2]
[313358337,1707228632390,-15904.67228134,0.000229,2]
[313358338,1707228632401,-1813.27621366,0.000229,2]
[313358339,1707228632412,-1814.1657,0.000229,2]
[313358340,1707228632422,-1000.0,0.00022999,2]
[313358341,1707228632431,-3020.30323365,0.00022999,2]
[313358342,1707228632442,-1834.8699564,0.00023,2]
[313358343,1707228632454,-596.73160215,0.00023,2]
[313358344,1707228633410,-179.56282688,0.00023,2]
[313358345,1707228633419,-4820.43717312,0.00023,2]
[313358389,1707228637923,-976.559396,0.00023,2]
[313358390,1707228637935,-4963.49662326,0.00023,2]
[313358393,1707228638037,-49551.80332225,0.00023,2]
[313358394,1707228638047,-160.15,0.00023209,2]
[313358395,1707228638057,-201.89660623,0.00024,2]
[313358396,1707228638066,-513.11756615,0.00025,2]
[313358397,1707228638076,-937.18611161,0.00025,2]
[313358398,1707228638085,-1589.9743297,0.00025,2]
[313358399,1707228638094,-1907.0887071,0.00025,2]
[313358400,1707228638104,-304.69299215,0.00025,2]
[313358401,1707228638113,-168.0547895,0.00025,2]
[313358402,1707228638123,-159.37408452,0.00025,2]
[313358403,1707228638132,-202.85936825,0.00025,2]
[313358404,1707228638142,-849.43,0.00025017,2]
[313358405,1707228638151,-324.15459059,0.0002565,2]
[313358406,1707228638160,-250.0,0.00025891,2]
[313358407,1707228638170,-500.0,0.0002617,2]
[313358408,1707228638183,-150.0,0.00026272,2]
[313358409,1707228638193,-166.49219581,0.00027,2]
[313358410,1707228638203,-399.981942,0.00027,2]
[313358411,1707228638212,-200.0,0.00027,2]
[313358412,1707228638221,-300.0,0.00027195,2]
[313358413,1707228638232,-155.0,0.00027397,2]
[313358414,1707228638243,-1000.0,0.000279,2]
[313358415,1707228638253,-132447.40165214,0.00028,2]
[313358416,1707228638262,-691.8979615,0.00028,2]
[313358417,1707228638272,-193.26718877,0.00028,2]
[313358418,1707228638282,-300.0,0.00028565,2]
[313358419,1707228638291,-155.0,0.00028767,2]
[313358420,1707228638300,-536.33636672,0.0002916,2]
[313358421,1707228638310,-366.23585006,0.000295,2]
[313358422,1707228638320,-176.20084231,0.000298,2]
[313358423,1707228638330,-22524.55016114,0.00029998,2]
[313358424,1707228638340,-475.23635189,0.00029999,2]
[313358425,1707228638349,-12266.83146281,0.00029999,2]
[313358426,1707228638358,-155.0,0.0003,2]
[313358427,1707228638367,-19117.8167135,0.0003,4]
[313358428,1707228638376,-909.70992107,0.0003,4]
[313358429,1707228638385,-1814.61203573,0.0003,4]
[313358430,1707228638394,-3000.0,0.0003,2]
[313358431,1707228638404,-9678.59852311,0.0003,2]
[313358432,1707228638415,-8881.73584673,0.0003,4]
[313358433,1707228638424,-818.08939684,0.0003,4]
[313358434,1707228638433,-585.09173402,0.0003,2]
[313358436,1707228638443,-694.85525332,0.0003,2]
[313358439,1707228638452,-400.91555381,0.0003,4]
[313358442,1707228638461,-73271.30940586,0.0003,4]
[313358445,1707228638471,-200.0,0.0003,2]
[313358447,1707228638481,-150.0,0.00030137,2]
[313358448,1707228638490,-1011.62,0.00030137,7]
[313358449,1707228638499,-155.0,0.00030137,2]
[313358450,1707228638509,-150.0,0.00030714,2]
[313358451,1707228638518,-150.0,0.00031291,2]
[313358452,1707228638531,-155.0,0.00031507,2]
[313358453,1707228638540,-180.0,0.00031644,2]
[313358454,1707228638550,-183738.378638,0.000318,3]
[313358455,1707228638559,-150.0,0.00031867,2]
[313358456,1707228638569,-155.83898632,0.00032,4]
[313358457,1707228638578,-8749.44660181,0.0003208,3]
[313358459,1707228638588,-150.0,0.00032444,2]
[313358461,1707228638597,-202.85391849,0.000325,2]
[313358463,1707228638606,-150.0,0.000328,21]
[313358464,1707228638616,-155.0,0.00032877,2]
[313358466,1707228638625,-858.10533297,0.00033,5]
[313358468,1707228638634,-150.0,0.00033021,2]
[313358470,1707228638643,-359.51295822,0.00033048,2]
[313358473,1707228638653,-1000.0,0.00033151,120]
[313358475,1707228638663,-150.0,0.000333,22]
[313358477,1707228638672,-17498.8932036,0.00033579,5]
[313358478,1707228638682,-1000.0,0.00033589,7]
[313358480,1707228638691,-927.45820913,0.00033589,4]
[313358483,1707228638700,-1000.0,0.00033589,7]
[313358484,1707228638709,-1000.0,0.00033589,7]
[313358487,1707228638719,-12597.67275647,0.00033589,6]
[313358489,1707228638728,-1520.73948481,0.00033589,4]
[313358490,1707228638737,-2411.36397015,0.00033589,4]
[313358492,1707228638747,-653.00214015,0.00033589,4]
[313358494,1707228638756,-189.85221207,0.00033589,4]
[313358496,1707228638766,-1649.98366802,0.00033589,4]
[313358499,1707228638775,-3440.15403526,0.00033589,5]
[313358501,1707228638786,-636.14624509,0.00033589,4]
[313358503,1707228638795,-1689.58573489,0.00033589,4]
[313358505,1707228638804,-316.92734725,0.00033589,4]
[313358506,1707228638813,-265.32747081,0.00033589,4]
[313358508,1707228638823,-150.0,0.00033598,2]
[313358510,1707228638834,-150.0,0.000338,22]
[313358512,1707228638844,-766.27755389,0.00034,4]
[313358514,1707228638853,-150.0,0.00034175,2]
[313358516,1707228638863,-155.0,0.00034247,2]
[313358518,1707228638873,-8749.44660181,0.0003429,6]
[313358520,1707228638882,-150.0,0.000343,23]
[313358522,1707228638892,-523.8010228,0.0003437,2]
[313358525,1707228638902,-26248.3398054,0.00034469,7]
[313358527,1707228638912,-8749.44660181,0.0003447,7]
[313358529,1707228638922,-500.0,0.00034479,2]
[313358531,1707228638932,-500.0,0.00034479,2]
[313358533,1707228638941,-500.0,0.00034479,2]
[313358535,1707228638951,-500.0,0.00034479,2]
[313358537,1707228638960,-500.0,0.00034479,2]
[313358539,1707228638970,-500.0,0.00034479,2]
[313358541,1707228638979,-500.0,0.00034479,2]
[313358543,1707228638990,-500.0,0.00034479,2]
[313358544,1707228639000,-500.0,0.00034479,2]
[313358547,1707228639010,-500.0,0.00034479,2]
[313358549,1707228639020,-500.0,0.00034479,2]
[313358551,1707228639032,-500.0,0.00034479,2]
[313358553,1707228639042,-500.0,0.00034479,2]
[313358554,1707228639053,-500.0,0.00034479,2]
[313358557,1707228639063,-500.0,0.00034479,2]
[313358558,1707228639073,-500.0,0.00034479,2]
[313358560,1707228639083,-500.0,0.00034479,2]
[313358580,1707228639262,-500.0,0.00034479,2]
[313358582,1707228639272,-500.0,0.00034479,2]
[313358584,1707228639283,-500.0,0.00034479,2]
[313358586,1707228639293,-500.0,0.00034479,2]
[313358588,1707228639302,-500.0,0.00034479,2]
[313358590,1707228639312,-500.0,0.00034479,2]
[313358592,1707228639322,-500.0,0.00034479,2]
[313358594,1707228639331,-500.0,0.00034479,2]
[313358596,1707228639341,-500.0,0.00034479,2]
[313358599,1707228639351,-500.0,0.00034479,2]
[313358601,1707228639360,-500.0,0.00034479,2]
[313358602,1707228639369,-500.0,0.00034479,2]
[313358605,1707228639379,-500.0,0.00034479,2]
[313358606,1707228639388,-500.0,0.00034479,2]
[313358608,1707228639398,-500.0,0.00034479,2]
[313358610,1707228639407,-500.0,0.00034479,2]
[313358612,1707228639417,-500.0,0.00034479,2]
[313358614,1707228639426,-500.0,0.00034479,2]
[313358616,1707228639435,-500.0,0.00034479,2]
[313358618,1707228639444,-500.0,0.00034479,2]
[313358620,1707228639454,-500.0,0.00034479,2]
[313358622,1707228639463,-500.0,0.00034479,2]
[313358624,1707228639472,-500.0,0.00034479,2]
[313358626,1707228639481,-500.0,0.00034479,2]
[313358628,1707228639490,-500.0,0.00034479,2]
[313358630,1707228639499,-500.0,0.00034479,2]
[313358632,1707228639508,-500.0,0.00034479,2]
[313358634,1707228639516,-500.0,0.00034479,2]
[313358636,1707228639525,-500.0,0.00034479,2]
[313358638,1707228639536,-500.0,0.00034479,2]
[313358640,1707228639545,-500.0,0.00034479,2]
[313358642,1707228639555,-500.0,0.00034479,2]
[313358644,1707228639564,-500.0,0.00034479,2]
[313358646,1707228639574,-500.0,0.00034479,2]
[313358648,1707228639583,-500.0,0.00034479,2]
[313358650,1707228639592,-500.0,0.00034479,2]
[313358652,1707228639601,-500.0,0.00034479,2]
[313358654,1707228639610,-500.0,0.00034479,2]
[313358656,1707228639619,-500.0,0.00034479,2]
[313358659,1707228639629,-500.0,0.00034479,2]
[313358660,1707228639638,-500.0,0.00034479,2]
[313358662,1707228639647,-500.0,0.00034479,2]
[313358664,1707228639657,-500.0,0.00034479,2]
[313358666,1707228639666,-500.0,0.00034479,2]
[313358667,1707228639675,-500.0,0.00034479,2]
[313358669,1707228639684,-500.0,0.00034479,2]
[313358671,1707228639693,-500.0,0.00034479,2]
[313358673,1707228639702,-500.0,0.00034479,2]
[313358675,1707228639711,-500.0,0.00034479,2]
[313358676,1707228639720,-500.0,0.00034479,2]
[313358678,1707228639729,-500.0,0.00034479,2]
[313358679,1707228639738,-500.0,0.00034479,2]
[313358680,1707228639747,-500.0,0.00034479,2]
[313358681,1707228639756,-500.0,0.00034479,2]
[313358682,1707228639765,-500.0,0.00034479,2]
[313358683,1707228639775,-500.0,0.00034479,2]
[313358684,1707228639786,-500.0,0.00034479,2]
[313358685,1707228639796,-500.0,0.00034479,2]
[313358686,1707228639806,-500.0,0.00034479,2]
[313358687,1707228639815,-500.0,0.00034479,2]
[313358688,1707228639825,-500.0,0.00034479,2]
[313358689,1707228639834,-500.0,0.00034479,2]
[313358690,1707228639844,-500.0,0.00034479,2]
[313358691,1707228639854,-500.0,0.00034479,2]
[313358692,1707228639863,-500.0,0.00034479,2]
[313358693,1707228639872,-500.0,0.00034479,2]
[313358694,1707228639881,-500.0,0.00034479,2]
[313358695,1707228639891,-500.0,0.00034479,2]
[313358696,1707228639900,-500.0,0.00034479,2]
[313358697,1707228639910,-500.0,0.00034479,2]
[313358698,1707228639920,-500.0,0.00034479,2]
[313358699,1707228639930,-500.0,0.00034479,2]
[313358700,1707228639940,-500.0,0.00034479,2]
[313358701,1707228639950,-500.0,0.00034479,2]
[313358702,1707228639960,-500.0,0.00034479,2]
[313358703,1707228639970,-500.0,0.00034479,2]
[313358704,1707228639980,-500.0,0.00034479,2]
[313358705,1707228639990,-500.0,0.00034479,2]
[313358706,1707228640002,-500.0,0.00034479,2]
[313358707,1707228640012,-500.0,0.00034479,2]
[313358708,1707228640022,-500.0,0.00034479,2]
[313358709,1707228640037,-500.0,0.00034479,2]
[313358710,1707228640047,-500.0,0.00034479,2]
[313358711,1707228640056,-500.0,0.00034479,2]
[313358712,1707228640066,-500.0,0.00034479,2]
[313358713,1707228640075,-500.0,0.00034479,2]
[313358714,1707228640084,-500.0,0.00034479,2]
[313358715,1707228640093,-500.0,0.00034479,2]
[313358716,1707228640103,-500.0,0.00034479,2]
[313358717,1707228640113,-500.0,0.00034479,2]
[313358718,1707228640122,-500.0,0.00034479,2]
[313358719,1707228640132,-500.0,0.00034479,2]
[313358720,1707228640142,-500.0,0.00034479,2]
[313358721,1707228640152,-500.0,0.00034479,2]
[313358722,1707228640161,-500.0,0.00034479,2]
[313358723,1707228640170,-500.0,0.00034479,2]
[313358724,1707228640180,-500.0,0.00034479,2]
[313358725,1707228640189,-500.0,0.00034479,2]
[313358726,1707228640198,-500.0,0.00034479,2]
[313358727,1707228640207,-500.0,0.00034479,2]
[313358728,1707228640216,-500.0,0.00034479,2]
[313358729,1707228640225,-350.0,0.00034479,2]
[313358730,1707228640236,-500.0,0.00034479,2]
[313358731,1707228640245,-500.0,0.00034479,2]
[313358732,1707228640256,-500.0,0.00034479,2]
[313358733,1707228640265,-500.0,0.00034479,2]
[313358734,1707228640275,-500.0,0.00034479,2]
[313358735,1707228640287,-500.0,0.00034479,2]
[313358736,1707228640296,-500.0,0.00034479,2]
[313358737,1707228640305,-500.0,0.00034479,2]
[313358738,1707228640315,-500.0,0.00034479,2]
[313358739,1707228640325,-500.0,0.00034479,2]
[313358740,1707228640334,-500.0,0.00034479,2]
[313358741,1707228640343,-500.0,0.00034479,2]
[313358742,1707228640352,-500.0,0.00034479,2]
[313358743,1707228640361,-500.0,0.00034479,2]
[313358744,1707228640370,-500.0,0.00034479,2]
[313358745,1707228640379,-500.0,0.00034479,2]
[313358746,1707228640388,-500.0,0.00034479,2]
[313358747,1707228640398,-500.0,0.00034479,2]
[313358748,1707228640407,-500.0,0.00034479,2]
[313358749,1707228640416,-500.0,0.00034479,2]
[313358750,1707228640425,-500.0,0.00034479,2]
[313358751,1707228640435,-500.0,0.00034479,2]
[313358752,1707228640445,-500.0,0.0003448,2]
[313358753,1707228640454,-500.0,0.0003448,2]
[313358754,1707228640464,-150.0,0.00034751,2]
[313358755,1707228640474,-150.0,0.000348,23]
[313358756,1707228640483,-17498.8932036,0.0003489,7]
[313358757,1707228640492,-8749.44660181,0.0003489,7]
[313358758,1707228640501,-500.0,0.000349,2]
[313358759,1707228640511,-500.0,0.000349,2]
[313358760,1707228640520,-500.0,0.000349,2]
[313358761,1707228640529,-350.0,0.000349,2]
[313358762,1707228640539,-500.0,0.000349,2]
[313358763,1707228640548,-500.0,0.000349,2]
[313358764,1707228640558,-500.0,0.000349,2]
[313358765,1707228640567,-500.0,0.000349,2]
[313358766,1707228640576,-500.0,0.000349,2]
[313358767,1707228640585,-500.0,0.000349,2]
[313358768,1707228640594,-500.0,0.000349,2]
[313358769,1707228640603,-500.0,0.000349,2]
[313358770,1707228640613,-500.0,0.000349,2]
[313358771,1707228640622,-500.0,0.000349,2]
[313358772,1707228640631,-500.0,0.000349,2]
[313358773,1707228640640,-500.0,0.000349,2]
[313358774,1707228640650,-500.0,0.000349,2]
[313358775,1707228640659,-500.0,0.000349,2]
[313358776,1707228640668,-500.0,0.000349,2]
[313358777,1707228640677,-500.0,0.000349,2]
[313358778,1707228640692,-500.0,0.000349,2]
[313358779,1707228640701,-500.0,0.000349,2]
[313358780,1707228640710,-500.0,0.000349,2]
[313358781,1707228640720,-500.0,0.000349,2]
[313358782,1707228640729,-500.0,0.000349,2]
[313358783,1707228640739,-500.0,0.000349,2]
[313358784,1707228640748,-500.0,0.000349,2]
[313358785,1707228640757,-500.0,0.000349,2]
[313358786,1707228640766,-500.0,0.000349,2]
[313358787,1707228640776,-500.0,0.000349,2]
[313358788,1707228640788,-500.0,0.000349,2]
[313358789,1707228640797,-200.0,0.000349,2]
[313358790,1707228640807,-500.0,0.000349,2]
[313358791,1707228640816,-500.0,0.000349,2]
[313358792,1707228640826,-500.0,0.000349,2]
[313358793,1707228640835,-500.0,0.000349,2]
[313358794,1707228640844,-500.0,0.000349,2]
[313358795,1707228640854,-500.0,0.000349,2]
[313358796,1707228640863,-500.0,0.000349,2]
[313358797,1707228640873,-500.0,0.000349,2]
[313358798,1707228640882,-500.0,0.000349,2]
[313358799,1707228640891,-500.0,0.000349,2]
[313358800,1707228640901,-500.0,0.000349,2]
[313358801,1707228640910,-500.0,0.000349,2]
[313358802,1707228640919,-500.0,0.000349,2]
[313358803,1707228640928,-500.0,0.000349,2]
[313358804,1707228640938,-500.0,0.000349,2]
[313358805,1707228640947,-500.0,0.000349,2]
[313358806,1707228640957,-500.0,0.000349,2]
[313358807,1707228640966,-500.0,0.000349,2]
[313358808,1707228640976,-500.0,0.000349,2]
[313358809,1707228640985,-500.0,0.000349,2]
[313358810,1707228640994,-500.0,0.000349,2]
[313358811,1707228641004,-500.0,0.000349,2]
[313358812,1707228641013,-500.0,0.000349,2]
[313358813,1707228641022,-500.0,0.000349,2]
[313358814,1707228641033,-500.0,0.000349,2]
[313358815,1707228641042,-500.0,0.000349,2]
[313358816,1707228641051,-500.0,0.000349,2]
[313358817,1707228641061,-500.0,0.000349,2]
[313358818,1707228641071,-500.0,0.000349,2]
[313358819,1707228641080,-500.0,0.000349,2]
[313358820,1707228641089,-500.0,0.000349,2]
[313358821,1707228641099,-500.0,0.000349,2]
[313358822,1707228641108,-500.0,0.000349,2]
[313358823,1707228641119,-9003.43535905,0.000349,4]
[313358824,1707228641128,-1991.08695313,0.000349,2]
[313358825,1707228641138,-1991.08695297,0.000349,2]
[313358826,1707228641147,-1991.08695297,0.000349,2]
[313358827,1707228641157,-1991.08695297,0.000349,2]
[313358828,1707228641166,-303.10874853,0.00034988,7]
[313358829,1707228641175,-500.0,0.00034999,15]
[313358830,1707228641184,-156.52956723,0.00034999,15]
[313358831,1707228641194,-417.75065514,0.00034999,15]
[313358832,1707228641203,-50000.0,0.00035,5]
[313358833,1707228641212,-450.0,0.00035,3]
[313358834,1707228641222,-150.0,0.000353,24]
[313358835,1707228641232,-150.0,0.00035328,2]
[313358836,1707228641241,-6222.0,0.00035616,2]
[313358837,1707228641252,-155.0,0.00035617,2]
[313358838,1707228641262,-155.41879404,0.00035765,2]
[313358839,1707228641271,-150.0,0.000358,25]
[313358840,1707228641286,-150.0,0.00035905,2]
[313358841,1707228641405,-50000.0,0.00036,6]
[313358842,1707228641415,-299.47927216,0.00036,4]
[313358843,1707228641424,-8749.44660181,0.00036196,10]
[313358844,1707228641433,-200.0,0.00036208,3]
[313358845,1707228641442,-1991.08695297,0.00036216,2]
[313358846,1707228641451,-150.0,0.000363,25]
[313358847,1707228641461,-150.0,0.00036482,2]
[313358848,1707228641470,-150.0,0.000368,26]
[313358849,1707228641479,-6222.0,0.00036934,2]
[313358850,1707228641488,-155.0,0.00036987,2]
[313358852,1707228641498,-50000.0,0.00037,7]
[313358854,1707228641511,-150.0,0.00037059,2]
[313358855,1707228641522,-150.0,0.000373,26]
[313358857,1707228641534,-150.0,0.00037635,2]
[313358858,1707228641543,-154.09,0.000377,3]
[313358860,1707228641553,-154.09,0.000377,3]
[313358862,1707228641562,-1991.08695297,0.00037795,2]
[313358863,1707228641578,-150.0,0.000378,27]
[313358864,1707228641588,-4505.48925453,0.000379,7]
[313358865,1707228641598,-286175.273268,0.000379,3]
[313358866,1707228641608,-50000.0,0.00038,8]
[313358867,1707228641618,-150.0,0.00038212,2]
[313358868,1707228641627,-234.94222158,0.0003825,5]
[313358869,1707228641637,-6222.0,0.00038252,2]
[313358870,1707228641647,-296.0,0.000383,27]
[313358871,1707228641656,-571.71,0.00038356,5]
[313358872,1707228641665,-150.42,0.00038356,2]
[313358873,1707228641674,-155.0,0.00038357,2]
[313358874,1707228641683,-152.57047347,0.00038491,2]
[313358875,1707228641690,-561.26,0.000385,3]
[313358876,1707228641699,-176.208117,0.00038656,12]
[313358877,1707228641708,-168.30508761,0.00038656,2]
[313358878,1707228641717,-152.65071127,0.00038756,2]
[313358879,1707228641725,-186.87447347,0.00038766,12]
[313358880,1707228641734,-2120.1098561,0.0003877,12]
[313358881,1707228641743,-196.62762018,0.00038774,2]
[313358882,1707228641752,-258.76555618,0.00038774,2]
[313358883,1707228641762,-366.27337296,0.00038774,2]
[313358884,1707228641771,-5000.0,0.00038776,3]
[313358885,1707228641785,-32806.6098,0.00038776,2]
[313358886,1707228641797,-150.0,0.00038789,2]
[313358887,1707228641807,-215.41213944,0.00038839,2]
[313358888,1707228641816,-597.0,0.00038855,5]
[313358889,1707228641827,-95391.7577561,0.00038866,4]
[313358890,1707228641836,-286175.273268,0.00038866,4]
[313358891,1707228641846,-262.18063643,0.00038874,4]
[313358892,1707228641856,-156.34939822,0.00038874,4]
[313358893,1707228641865,-155.0,0.00038874,2]
[313358894,1707228641875,-155.0,0.00038875,4]
[313358895,1707228641884,-150.0,0.00038875,2]
[313358896,1707228641894,-150.0,0.00038875,2]
[313358897,1707228641903,-108348.3743057,0.00038876,3]
[313358898,1707228641913,-243.45145227,0.00038876,2]
[313358899,1707228641922,-215.91773115,0.00038876,2]
[313358900,1707228641933,-14910.75674449,0.00038876,2]
[313358901,1707228641944,-447.12059378,0.00038876,4]
[313358902,1707228641953,-652930.57031656,0.00038876,2]
[313358903,1707228641963,-150.0,0.00038876,2]
[313358904,1707228641972,-150.0,0.00038876,2]